fUSD/lending_fUSD_20250222
["ID","MTS","AMOUNT","RATE_DAILY","PERIOD"]
[354115368,1740255042389,-500.0,0.00010958,2]
[354115369,1740255042398,-500.0,0.00010958,2]
[354115370,1740255042407,-500.0,0.00010958,2]
[354115371,1740255042416,-468.31182288,0.00010958,2]
[354115372,1740255042425,-500.0,0.00010958,2]
[354115373,1740255042434,-500.0,0.00010958,2]
[354115374,1740255042443,-515.8832663,0.00010958,2]
[354115375,1740255042452,-500.0,0.00010958,2]
[354115376,1740255042461,-500.0,0.00010958,2]
[354115377,1740255042470,-500.0,0.00010958,2]
[354115378,1740255042480,-500.0,0.00010958,2]
[354115379,1740255042489,-500.0,0.00010958,2]
[354115380,1740255042498,-500.0,0.00010958,2]
[354115381,1740255042507,-500.0,0.00010958,2]
[354115382,1740255042517,-500.0,0.00010958,2]
[354115383,1740255042526,-500.0,0.00010958,2]
[354115384,1740255042535,-500.0,0.00010958,2]
[354115385,1740255042544,-500.0,0.00010958,2]
[354115386,1740255042553,-500.0,0.00010958,2]
[354115387,1740255042562,-500.0,0.00010958,2]
[354115388,1740255042571,-500.0,0.00010958,2]
[354115389,1740255042580,-500.0,0.00010958,2]
[354115390,1740255042750,-566.11,0.00010958,2]
[354115391,1740255042759,-500.0,0.00010958,2]
[354115392,1740255042769,-500.0,0.00010958,2]
[354115393,1740255042778,-500.0,0.00010958,2]
[354115394,1740255042787,-509.56297362,0.00010958,2]
[354115395,1740255042796,-500.0,0.00010958,2]
[354115396,1740255042805,-500.0,0.00010958,2]
[354115397,1740255042814,-500.0,0.00010958,2]
[354115399,1740255042823,-500.0,0.00010958,2]
[354115401,1740255042832,-500.0,0.00010958,2]
[354115403,1740255042841,-500.0,0.00010958,2]
[354115405,1740255042851,-500.0,0.00010958,2]
[354115407,1740255042860,-500.0,0.00010958,2]
[354115409,1740255042869,-519.71851068,0.00010958,2]
[354115411,1740255042878,-616.88,0.00010958,2]
[354115413,1740255042887,-500.0,0.00010958,2]
[354115415,1740255042896,-500.0,0.00010958,2]
[354115417,1740255042905,-500.0,0.00010958,2]
[354115419,1740255042914,-532.25835412,0.00010958,2]
[354115421,1740255042923,-500.0,0.00010958,2]
[354115423,1740255042932,-510.63,0.00010958,2]
[354115425,1740255042941,-500.0,0.00010958,2]
[354115426,1740255042950,-500.0,0.00010958,2]
[354115427,1740255042959,-500.0,0.00010958,2]
[354115428,1740255042968,-500.0,0.00010958,2]
[354115429,1740255042977,-500.0,0.00010958,2]
[354115430,1740255042989,-500.0,0.00010958,2]
[354115431,1740255042998,-175.25,0.00010958,2]
[354115432,1740255043008,-500.0,0.00010958,2]
[354115433,1740255043017,-500.0,0.00010958,2]
[354115434,1740255043027,-500.0,0.00010958,2]
[354115435,1740255043036,-500.0,0.00010958,2]
[354115436,1740255043046,-556.6,0.00010958,2]
[354115437,1740255043056,-500.0,0.00010958,2]
[354115438,1740255043068,-500.0,0.00010958,2]
[354115439,1740255043078,-233.29341737,0.00010958,2]
[354115440,1740255043088,-500.0,0.00010958,2]
[354115441,1740255043097,-500.0,0.00010958,2]
[354115442,1740255043106,-177.87515493,0.00010958,2]
[354115443,1740255043115,-255.93649437,0.00010958,2]
[354115444,1740255043124,-500.0,0.00010958,2]
[354115445,1740255043133,-500.0,0.00010958,2]
[354115446,1740255043142,-232.90112029,0.00010958,2]
[354115447,1740255043152,-500.0,0.00010958,2]
[354115448,1740255043161,-500.0,0.00010958,2]
[354115449,1740255043171,-500.0,0.00010958,2]
[354115450,1740255043181,-263.45,0.00010958,2]
[354115451,1740255043190,-500.0,0.00010958,2]
[354115452,1740255043200,-500.0,0.00010958,2]
[354115453,1740255043210,-500.0,0.00010958,2]
[354115454,1740255043219,-780.38,0.00010958,2]
[354115455,1740255043229,-500.0,0.00010958,2]
[354115456,1740255043238,-500.0,0.00010958,2]
[354115457,1740255043247,-500.0,0.00010958,2]
[354115458,1740255043257,-500.0,0.00010958,2]
[354115459,1740255043266,-592.62,0.00010958,2]
[354115460,1740255043276,-500.0,0.00010958,2]
[354115461,1740255043285,-500.0,0.00010958,2]
[354115462,1740255043294,-150.0,0.00010959,2]
[354115463,1740255043303,-127199.94435065,0.00011,2]
[354115464,1740255043313,-261.26,0.0001104,2]
[354115465,1740255043322,-480.600656,0.00011041,2]
[354115466,1740255043331,-157.841228,0.00011041,2]
[354115467,1740255043340,-500.0,0.00011041,2]
[354115468,1740255043349,-162.939109,0.00011041,2]
[354115469,1740255043358,-162.939109,0.00011041,2]
[354115470,1740255043368,-500.0,0.00011041,2]
[354115471,1740255043377,-500.0,0.00011041,2]
[354115472,1740255043386,-500.0,0.00011041,2]
[354115473,1740255043396,-500.0,0.00011041,2]
[354115474,1740255043405,-500.0,0.00011041,2]
[354115475,1740255043414,-286.78,0.00011041,2]
[354115476,1740255043424,-401.36,0.00011041,2]
[354115477,1740255043433,-195.28,0.00011041,2]
[354115478,1740255043441,-365.43,0.00011041,2]
[354115479,1740255043450,-161.26,0.00011041,2]
[354115480,1740255043459,-500.0,0.00011041,2]
[354115481,1740255043468,-389.09,0.00011041,2]
[354115482,1740255043477,-500.0,0.00011041,2]
[354115483,1740255043487,-500.0,0.00011041,2]
[354115484,1740255043496,-500.0,0.00011041,2]
[354115485,1740255043506,-337.76,0.00011041,2]
[354115486,1740255043515,-500.0,0.00011041,2]
[354115487,1740255043524,-500.86,0.00011041,2]
[354115488,1740255043533,-500.0,0.00011041,2]
[354115489,1740255043542,-500.0,0.00011041,2]
[354115490,1740255043551,-500.0,0.00011041,2]
[354115491,1740255043560,-561.23,0.00011041,2]
[354115492,1740255043569,-500.0,0.00011041,2]
[354115493,1740255043578,-625.78,0.00011041,2]
[354115494,1740255043587,-500.0,0.00011041,2]
[354115495,1740255043596,-500.0,0.00011041,2]
[354115496,1740255043605,-500.0,0.00011041,2]
[354115497,1740255043614,-500.0,0.00011041,2]
[354115498,1740255043624,-593.12,0.00011041,2]
[354115499,1740255043633,-495.56,0.00011041,2]
[354115500,1740255043642,-500.0,0.00011041,2]
[354115501,1740255043651,-500.0,0.00011041,2]
[354115502,1740255043660,-500.0,0.00011041,2]
[354115503,1740255043669,-500.0,0.00011041,2]
[354115504,1740255043678,-500.0,0.00011041,2]
[354115505,1740255043686,-500.0,0.00011041,2]
[354115506,1740255043695,-637.92,0.00011041,2]
[354115507,1740255043704,-500.0,0.00011041,2]
[354115508,1740255043713,-500.0,0.00011041,2]
[354115509,1740255043722,-500.0,0.00011041,2]
[354115510,1740255043731,-500.0,0.00011041,2]
[354115511,1740255043740,-500.0,0.00011041,2]
[354115512,1740255043749,-500.0,0.00011041,2]
[354115513,1740255043758,-500.0,0.00011041,2]
[354115514,1740255043768,-536.29,0.00011041,2]
[354115515,1740255043777,-233.58,0.00011041,2]
[354115516,1740255043786,-500.0,0.00011041,2]
[354115517,1740255043795,-500.0,0.00011041,2]
[354115518,1740255043804,-500.0,0.00011041,2]
[354115519,1740255043813,-500.0,0.00011041,2]
[354115520,1740255043822,-618.30911836,0.00011041,2]
[354115521,1740255043831,-500.0,0.00011041,2]
[354115522,1740255043839,-230.45,0.00011041,2]
[354115523,1740255043852,-500.0,0.00011041,2]
[354115524,1740255043862,-500.0,0.00011041,2]
[354115525,1740255043871,-500.0,0.00011041,2]
[354115526,1740255043881,-500.0,0.00011041,2]
[354115527,1740255043890,-500.0,0.00011041,2]
[354115528,1740255043899,-500.0,0.00011041,2]
[354115529,1740255043908,-500.0,0.00011041,2]
[354115530,1740255043917,-500.0,0.00011041,2]
[354115531,1740255043926,-500.0,0.00011041,2]
[354115532,1740255043935,-297.65,0.00011041,2]
[354115533,1740255043944,-500.0,0.00011041,2]
[354115534,1740255043954,-500.0,0.00011041,2]
[354115535,1740255043963,-372.52,0.00011041,2]
[354115536,1740255043972,-498.66,0.00011041,2]
[354115537,1740255043983,-500.0,0.00011041,2]
[354115538,1740255043992,-500.0,0.00011041,2]
[354115539,1740255044003,-175.26,0.00011041,2]
[354115540,1740255044012,-500.0,0.00011041,2]
[354115541,1740255044022,-641.03,0.00011041,2]
[354115542,1740255044031,-502.09,0.00011041,2]
[354115543,1740255044040,-209.37,0.00011041,2]
[354115544,1740255044050,-500.0,0.00011041,2]
[354115545,1740255044060,-500.0,0.00011041,2]
[354115546,1740255044070,-225.64,0.00011041,2]
[354115547,1740255044079,-500.0,0.00011041,2]
[354115548,1740255044088,-500.0,0.00011041,2]
[354115549,1740255044098,-435.5725635,0.00011041,2]
[354115550,1740255044107,-603.17021183,0.00011041,2]
[354115551,1740255044117,-500.0,0.00011041,2]
[354115552,1740255044126,-302.0,0.00011041,2]
[354115553,1740255044135,-500.0,0.00011041,2]
[354115554,1740255044145,-355.97,0.00011041,2]
[354115555,1740255044154,-612.72,0.00011041,2]
[354115556,1740255044164,-500.0,0.00011041,2]
[354115557,1740255044173,-500.0,0.00011041,2]
[354115558,1740255044183,-500.0,0.00011041,2]
[354115559,1740255044192,-500.0,0.00011041,2]
[354115560,1740255044201,-500.0,0.00011041,2]
[354115561,1740255044210,-291.94213095,0.00011041,2]
[354115562,1740255044219,-500.0,0.00011041,2]
[354115563,1740255044228,-500.0,0.00011041,2]
[354115564,1740255044237,-500.0,0.00011041,2]
[354115565,1740255044246,-500.0,0.00011041,2]
[354115566,1740255044257,-458.09,0.00011041,2]
[354115567,1740255044266,-619.53,0.00011041,2]
[354115568,1740255044275,-780.38,0.00011041,2]
[354115569,1740255044284,-500.0,0.00011041,2]
[354115570,1740255044294,-500.0,0.00011041,2]
[354115571,1740255044303,-2159.01682,0.0001107,2]
[354115572,1740255044312,-26854.30388403,0.00011099,2]
[354115573,1740255044321,-26854.30388403,0.00011099,2]
[354115574,1740255044330,-17196.5153912,0.00011099,2]
[354115575,1740255044339,-17196.5153912,0.00011099,2]
[354115576,1740255044348,-500.0,0.00011116,2]
[354115577,1740255044357,-151.0,0.00011123,2]
[354115578,1740255044366,-157.841228,0.00011123,2]
[354115579,1740255044375,-194.94,0.00011123,2]
[354115580,1740255044384,-162.939109,0.00011123,2]
[354115581,1740255044393,-500.0,0.00011123,2]
[354115582,1740255044402,-320.06,0.00011123,2]
[354115583,1740255044411,-515.77,0.00011123,2]
[354115584,1740255044420,-520.74,0.00011123,2]
[354115585,1740255044429,-320.65,0.00011123,2]
[354115586,1740255044438,-422.19,0.00011123,2]
[354115587,1740255044447,-520.01,0.00011123,2]
[354115588,1740255044456,-649.61,0.00011123,2]
[354115589,1740255044465,-329.31,0.00011123,2]
[354115590,1740255044476,-440.56008841,0.00011123,2]
[354115591,1740255044485,-277.69,0.00011123,2]
[354115592,1740255044496,-229.31,0.00011123,2]
[354115593,1740255044507,-260.78,0.00011123,2]
[354115594,1740255044519,-630.44,0.00011123,2]
[354115595,1740255044529,-500.0,0.00011123,2]
[354115596,1740255044538,-151.0,0.00011123,2]
[354115597,1740255044550,-500.0,0.00011123,2]
[354115598,1740255044559,-500.0,0.00011123,2]
[354115599,1740255044571,-500.0,0.00011123,2]
[354115600,1740255044581,-500.0,0.00011123,2]
[354115601,1740255044591,-505.32,0.00011123,2]
[354115602,1740255044601,-540.61,0.00011123,2]
[354115603,1740255044610,-637.92,0.00011123,2]
[354115604,1740255044619,-500.0,0.00011123,2]
[354115605,1740255044630,-500.0,0.00011123,2]
[354115606,1740255044640,-500.0,0.00011123,2]
[354115607,1740255044649,-500.0,0.00011123,2]
[354115608,1740255044658,-500.0,0.00011123,2]
[354115609,1740255044667,-500.0,0.00011123,2]
[354115610,1740255044677,-500.0,0.00011123,2]
[354115611,1740255044685,-596.29,0.00011123,2]
[354115612,1740255044695,-500.0,0.00011123,2]
[354115613,1740255044704,-500.0,0.00011123,2]
[354115614,1740255044713,-451.33,0.00011123,2]
[354115615,1740255044723,-400.28,0.00011123,2]
[354115616,1740255044732,-500.0,0.00011123,2]
[354115617,1740255044742,-500.0,0.00011123,2]
[354115618,1740255044752,-500.0,0.00011123,2]
[354115619,1740255044762,-435.05,0.00011123,2]
[354115620,1740255044773,-500.0,0.00011123,2]
[354115621,1740255044782,-500.0,0.00011123,2]
[354115622,1740255044791,-500.0,0.00011123,2]
[354115623,1740255044802,-500.0,0.00011123,2]
[354115624,1740255044811,-500.0,0.00011123,2]
[354115625,1740255044820,-500.0,0.00011123,2]
[354115626,1740255044829,-500.0,0.00011123,2]
[354115627,1740255044838,-500.0,0.00011123,2]
[354115628,1740255044849,-617.52,0.00011123,2]
[354115629,1740255044858,-500.0,0.00011123,2]
[354115630,1740255044867,-500.0,0.00011123,2]
[354115631,1740255044876,-500.0,0.00011123,2]
[354115632,1740255044885,-151.0,0.00011123,2]
[354115633,1740255044894,-500.0,0.00011123,2]
[354115634,1740255044903,-193.41,0.00011123,2]
[354115635,1740255044913,-151.0,0.00011123,2]
[354115636,1740255044922,-500.0,0.00011123,2]
[354115637,1740255044931,-500.0,0.00011123,2]
[354115638,1740255044941,-500.0,0.00011123,2]
[354115639,1740255044950,-500.0,0.00011123,2]
[354115640,1740255044959,-500.0,0.00011123,2]
[354115641,1740255044968,-500.0,0.00011123,2]
[354115642,1740255044978,-500.0,0.00011123,2]
[354115643,1740255044990,-500.0,0.00011123,2]
[354115644,1740255045001,-780.38,0.00011123,2]
[354115645,1740255045011,-500.0,0.00011123,2]
[354115646,1740255045020,-2954.20699153,0.00011126,2]
[354115647,1740255045030,-167.537347,0.0001117,2]
[354115648,1740255045039,-157.841228,0.00011205,2]
[354115649,1740255045048,-162.939109,0.00011205,2]
[354115650,1740255045058,-479.01052235,0.00011205,2]
[354115651,1740255045067,-500.0,0.00011205,2]
[354115652,1740255045077,-500.0,0.00011205,2]
[354115653,1740255045085,-500.0,0.00011205,2]
[354115654,1740255045095,-500.0,0.00011205,2]
[354115655,1740255045104,-500.0,0.00011205,2]
[354115656,1740255045113,-637.92,0.00011205,2]
[354115657,1740255045122,-500.0,0.00011205,2]
[354115658,1740255045131,-500.0,0.00011205,2]
[354115659,1740255045140,-500.0,0.00011205,2]
[354115660,1740255045150,-500.0,0.00011205,2]
[354115661,1740255045159,-235.44,0.00011205,2]
[354115663,1740255045169,-500.0,0.00011205,2]
[354115664,1740255045179,-500.0,0.00011205,2]
[354115665,1740255045188,-500.0,0.00011205,2]
[354115666,1740255045197,-500.0,0.00011205,2]
[354115667,1740255045207,-500.0,0.00011205,2]
[354115668,1740255045216,-500.0,0.00011205,2]
[354115669,1740255045225,-500.0,0.00011205,2]
[354115670,1740255045234,-425.70057096,0.00011205,2]
[354115671,1740255045244,-483.38004605,0.00011205,2]
[354115672,1740255045253,-500.0,0.00011205,2]
[354115673,1740255045263,-629.32404154,0.00011205,2]
[354115674,1740255045273,-500.0,0.00011205,2]
[354115675,1740255045281,-500.0,0.00011205,2]
[354115676,1740255045291,-500.0,0.00011205,2]
[354115677,1740255045300,-500.0,0.00011205,2]
[354115678,1740255045310,-500.0,0.00011205,2]
[354115679,1740255045319,-500.0,0.00011205,2]
[354115680,1740255045329,-500.0,0.00011205,2]
[354115681,1740255045338,-500.0,0.00011205,2]
[354115682,1740255045347,-500.0,0.00011205,2]
[354115683,1740255045357,-540.19,0.00011205,2]
[354115684,1740255045366,-500.0,0.00011205,2]
[354115685,1740255045375,-500.0,0.00011205,2]
[354115686,1740255045385,-500.0,0.00011205,2]
[354115687,1740255045394,-560.90088733,0.00011205,2]
[354115688,1740255045404,-500.0,0.00011205,2]
[354115689,1740255045415,-500.0,0.00011205,2]
[354115690,1740255045426,-780.38,0.00011205,2]
[354115691,1740255045435,-500.0,0.00011205,2]
[354115692,1740255045448,-406.69797652,0.00011235,2]
[354115693,1740255045460,-206.74936636,0.00011257,2]
[354115694,1740255045470,-314.88577936,0.00011274,2]
[354115695,1740255045479,-157.841228,0.00011287,2]
[354115696,1740255045488,-162.939109,0.00011287,2]
[354115697,1740255045497,-162.939109,0.00011287,2]
[354115698,1740255045507,-358.4,0.00011287,2]
[354115699,1740255045516,-452.84,0.00011287,2]
[354115700,1740255045525,-500.0,0.00011287,2]
[354115701,1740255045534,-369.94,0.00011287,2]
[354115702,1740255045543,-500.0,0.00011287,2]
[354115703,1740255045552,-637.92,0.00011287,2]
[354115704,1740255045561,-500.0,0.00011287,2]
[354115705,1740255045570,-500.0,0.00011287,2]
[354115706,1740255045579,-500.0,0.00011287,2]
[354115707,1740255045588,-473.23,0.00011287,2]
[354115708,1740255045597,-500.0,0.00011287,2]
[354115709,1740255045606,-500.0,0.00011287,2]
[354115710,1740255045615,-262.29323526,0.00011287,2]
[354115711,1740255045624,-500.0,0.00011287,2]
[354115712,1740255045634,-500.0,0.00011287,2]
[354115713,1740255045643,-500.0,0.00011287,2]
[354115714,1740255045653,-500.0,0.00011287,2]
[354115715,1740255045662,-432.17,0.00011287,2]
[354115716,1740255045672,-500.0,0.00011287,2]
[354115717,1740255045681,-500.0,0.00011287,2]
[354115718,1740255045691,-500.0,0.00011287,2]
[354115719,1740255045699,-500.0,0.00011287,2]
[354115720,1740255045709,-500.0,0.00011287,2]
[354115721,1740255045718,-591.15,0.00011287,2]
[354115722,1740255045727,-500.0,0.00011287,2]
[354115723,1740255045738,-500.0,0.00011287,2]
[354115724,1740255045747,-500.0,0.00011287,2]
[354115725,1740255045761,-500.0,0.00011287,2]
[354115726,1740255045770,-500.0,0.00011287,2]
[354115727,1740255045779,-500.0,0.00011287,2]
[354115728,1740255045789,-500.0,0.00011287,2]
[354115729,1740255045797,-500.0,0.00011287,2]
[354115730,1740255045807,-780.38,0.00011287,2]
[354115731,1740255045815,-500.0,0.00011287,2]
[354115732,1740255045824,-500.0,0.00011363,2]
[354115733,1740255045833,-157.841228,0.00011369,2]
[354115734,1740255045842,-162.939109,0.00011369,2]
[354115735,1740255045852,-635.91544947,0.00011369,2]
[354115736,1740255045861,-500.0,0.00011369,2]
[354115737,1740255045870,-637.92,0.00011369,2]
[354115738,1740255045879,-500.0,0.00011369,2]
[354115739,1740255045888,-450.45,0.00011369,2]
[354115740,1740255045897,-480.2,0.00011369,2]
[354115741,1740255045906,-500.0,0.00011369,2]
[354115742,1740255045915,-311.73,0.00011369,2]
[354115743,1740255045924,-311.39,0.00011369,2]
[354115744,1740255045933,-500.0,0.00011369,2]
[354115745,1740255045943,-500.0,0.00011369,2]
[354115746,1740255045952,-500.0,0.00011369,2]
[354115747,1740255045962,-500.0,0.00011369,2]
[354115748,1740255045971,-500.0,0.00011369,2]
[354115749,1740255045982,-500.0,0.00011369,2]
[354115750,1740255045991,-500.0,0.00011369,2]
[354115751,1740255046001,-500.0,0.00011369,2]
[354115752,1740255046011,-500.0,0.00011369,2]
[354115753,1740255046020,-500.0,0.00011369,2]
[354115754,1740255046030,-500.0,0.00011369,2]
[354115755,1740255046039,-500.0,0.00011369,2]
[354115756,1740255046048,-480.15,0.00011369,2]
[354115757,1740255046058,-500.0,0.00011369,2]
[354115758,1740255046067,-500.0,0.00011369,2]
[354115759,1740255046076,-500.0,0.00011369,2]
[354115760,1740255046085,-780.38,0.00011369,2]
[354115761,1740255046094,-500.0,0.00011369,2]
[354115762,1740255046105,-220.41217282,0.00011369,2]
[354115763,1740255046118,-2159.01682,0.0001139,2]
[354115764,1740255046127,-159.81399223,0.00011424,2]
[354115765,1740255046136,-247.61741955,0.00011439,2]
[354115766,1740255046146,-157.841228,0.00011452,2]
[354115767,1740255046155,-162.939109,0.00011452,2]
[354115768,1740255046164,-500.0,0.00011452,2]
[354115769,1740255046173,-637.92,0.00011452,2]
[354115770,1740255046183,-500.0,0.00011452,2]
[354115771,1740255046192,-640.04,0.00011452,2]
[354115772,1740255046202,-500.0,0.00011452,2]
[354115773,1740255046212,-500.0,0.00011452,2]
[354115774,1740255046221,-500.0,0.00011452,2]
[354115775,1740255046231,-328.1917,0.00011452,2]
[354115776,1740255046240,-310.99,0.00011452,2]
[354115777,1740255046249,-500.0,0.00011452,2]
[354115778,1740255046258,-500.0,0.00011452,2]
[354115779,1740255046267,-500.0,0.00011452,2]
[354115780,1740255046277,-500.0,0.00011452,2]
[354115781,1740255046286,-500.0,0.00011452,2]
[354115782,1740255046295,-284.4,0.00011452,2]
[354115783,1740255046305,-500.0,0.00011452,2]
[354115784,1740255046315,-500.0,0.00011452,2]
[354115785,1740255046324,-500.0,0.00011452,2]
[354115786,1740255046333,-500.0,0.00011452,2]
[354115787,1740255046343,-780.38,0.00011452,2]
[354115788,1740255046351,-312.02,0.00011452,2]
[354115789,1740255046361,-2751.0,0.00011507,2]
[354115790,1740255046370,-500.0,0.00011534,2]
[354115791,1740255046379,-637.92,0.00011534,2]
[354115792,1740255046388,-500.0,0.00011534,2]
[354115793,1740255046398,-500.0,0.00011534,2]
[354115794,1740255046407,-498.84,0.00011534,2]
[354115795,1740255046417,-500.0,0.00011534,2]
[354115796,1740255046427,-500.0,0.00011534,2]
[354115797,1740255046436,-500.0,0.00011534,2]
[354115798,1740255046445,-629.26139798,0.00011534,2]
[354115799,1740255046455,-500.0,0.00011534,2]
[354115800,1740255046464,-500.0,0.00011534,2]
[354115801,1740255046474,-500.0,0.00011534,2]
[354115802,1740255046483,-500.0,0.00011534,2]
[354115803,1740255046493,-500.0,0.00011534,2]
[354115804,1740255046502,-500.0,0.00011534,2]
[354115805,1740255046511,-780.38,0.00011534,2]
[354115806,1740255046520,-248.0,0.00011553,3]
[354115807,1740255046530,-206.74936636,0.00011614,2]
[354115808,1740255046539,-500.0,0.00011616,2]
[354115809,1740255046549,-637.92,0.00011616,2]
[354115810,1740255046558,-500.0,0.00011616,2]
[354115811,1740255046568,-242.17,0.00011616,2]
[354115812,1740255046577,-500.0,0.00011616,2]
[354115813,1740255046587,-500.0,0.00011616,2]
[354115814,1740255046596,-500.0,0.00011616,2]
[354115815,1740255046608,-500.0,0.00011616,2]
[354115816,1740255046618,-500.0,0.00011616,2]
[354115817,1740255046628,-500.0,0.00011616,2]
[354115818,1740255046784,-500.0,0.00011616,2]
[354115819,1740255046795,-500.0,0.00011616,2]
[354115820,1740255046804,-500.0,0.00011616,2]
[354115821,1740255046814,-780.38,0.00011616,2]
[354115822,1740255046823,-500.0,0.00011698,2]
[354115823,1740255046833,-637.92,0.00011698,2]
[354115824,1740255046842,-500.0,0.00011698,2]
[354115825,1740255046852,-500.0,0.00011698,2]
[354115826,1740255046861,-500.0,0.00011698,2]
[354115827,1740255046871,-500.0,0.00011698,2]
[354115828,1740255046881,-500.0,0.00011698,2]
[354115829,1740255046890,-500.0,0.00011698,2]
[354115830,1740255046899,-500.0,0.00011698,2]
[354115831,1740255046909,-500.0,0.00011698,2]
[354115832,1740255046918,-500.0,0.00011698,2]
[354115833,1740255046928,-500.0,0.00011698,2]
[354115834,1740255046938,-780.38,0.00011698,2]
[354115835,1740255046947,-500.0,0.0001178,2]
[354115836,1740255046957,-637.92,0.0001178,2]
[354115837,1740255046967,-500.0,0.0001178,2]
[354115838,1740255046977,-500.0,0.0001178,2]
[354115839,1740255046989,-479.59295816,0.0001178,2]
[354115840,1740255046998,-500.0,0.0001178,2]
[354115841,1740255047010,-500.0,0.0001178,2]
[354115842,1740255047019,-500.0,0.0001178,2]
[354115843,1740255047029,-500.0,0.0001178,2]
[354115844,1740255047038,-500.0,0.0001178,2]
[354115845,1740255047047,-511.68948531,0.0001178,2]
[354115846,1740255047058,-500.0,0.0001178,2]
[354115847,1740255047068,-780.38,0.0001178,2]
[354115848,1740255047077,-548.26,0.00011789,2]
[354115849,1740255047087,-500.0,0.00011863,2]
[354115850,1740255047096,-637.92,0.00011863,2]
[354115851,1740255047106,-500.0,0.00011863,2]
[354115852,1740255047116,-500.0,0.00011863,2]
[354115853,1740255047125,-588.07,0.00011863,2]
[354115854,1740255047135,-500.0,0.00011863,2]
[354115855,1740255047144,-500.0,0.00011863,2]
[354115856,1740255047153,-500.0,0.00011863,2]
[354115857,1740255047163,-500.0,0.00011863,2]
[354115858,1740255047172,-500.0,0.00011863,2]
[354115859,1740255047182,-780.38,0.00011863,2]
[354115860,1740255047191,-273.24425692,0.000119,2]
[354115861,1740255047201,-151.0,0.00011945,2]
[354115862,1740255047210,-500.0,0.00011945,2]
[354115863,1740255047220,-637.92,0.00011945,2]
[354115864,1740255047231,-426.18,0.00011945,2]
[354115865,1740255047241,-456.06,0.00011945,2]
[354115866,1740255047250,-500.0,0.00011945,2]
[354115867,1740255047260,-500.0,0.00011945,2]
[354115868,1740255047269,-500.0,0.00011945,2]
[354115869,1740255047279,-354.49,0.00011945,2]
[354115870,1740255047288,-500.0,0.00011945,2]
[354115871,1740255047298,-780.38,0.00011945,2]
[354115872,1740255047308,-206.74936636,0.00011971,2]
[354115873,1740255047318,-17196.5153912,0.00011998,2]
[354115874,1740255047327,-151.0,0.00011998,2]
[354115875,1740255047337,-26854.30388403,0.00011998,2]
[354115876,1740255047347,-152.740419,0.00011998,2]
[354115877,1740255047357,-151.0,0.00011998,2]
[354115878,1740255047366,-600.0,0.00012,2]
[354115879,1740255047376,-459.02,0.00012027,2]
[354115880,1740255047386,-637.92,0.00012027,2]
[354115881,1740255047395,-500.0,0.00012027,2]
[354115882,1740255047405,-367.89338824,0.00012027,2]